[Event "*** Titled Tuesday Blitz"]
[Site "Chess.com"]
[Date "2020.10.20"]
[Round "7"]
[White "MatyChess1"]
[Black "AlexTriapishko"]
[Result "1/2-1/2"]
[WhiteElo "2549"]
[BlackElo "2785"]
[TimeControl "180+1"]
[EndTime "11:21:29 PDT"]
[Termination "Game drawn - insufficient material"]

1. e4 {[%clk 0:03:00.9]} 1... c6 {[%clk 0:02:54.7]} 2. Nc3 {[%clk 0:02:58.8]}
2... d5 {[%clk 0:02:55.6]} 3. Nf3 {[%clk 0:02:59.6]} 3... Bg4 {[%clk 0:02:33.9]}
4. h3 {[%clk 0:02:58.9]} 4... Bxf3 {[%clk 0:02:34.2]} 5. Qxf3 {[%clk 0:02:59.8]}
5... Nf6 {[%clk 0:02:34.8]} 6. d3 {[%clk 0:02:50.1]} 6... e6 {[%clk 0:02:34]} 7.
a3 {[%clk 0:02:50.4]} 7... Nbd7 {[%clk 0:02:33.3]} 8. g3 {[%clk 0:02:49.8]} 8...
Bc5 {[%clk 0:02:29.6]} 9. Bg2 {[%clk 0:02:49.5]} 9... O-O {[%clk 0:02:29.9]} 10.
O-O {[%clk 0:02:49.4]} 10... a5 {[%clk 0:02:26.7]} 11. Bf4 {[%clk 0:02:41.2]}
11... Bd4 {[%clk 0:02:25.4]} 12. Rab1 {[%clk 0:02:39.2]} 12... Ne5 {[%clk
0:02:13.2]} 13. Qd1 {[%clk 0:02:34.7]} 13... Ng6 {[%clk 0:02:12.7]} 14. Bd2
{[%clk 0:02:32.4]} 14... dxe4 {[%clk 0:02:08]} 15. Nxe4 {[%clk 0:02:28.8]} 15...
Nxe4 {[%clk 0:02:06.5]} 16. Bxe4 {[%clk 0:02:29.7]} 16... Qd6 {[%clk 0:02:01.2]}
17. Kg2 {[%clk 0:02:18.8]} 17... a4 {[%clk 0:01:51.5]} 18. c3 {[%clk 0:02:16.4]}
18... Bb6 {[%clk 0:01:46.6]} 19. d4 {[%clk 0:02:11.1]} 19... e5 {[%clk
0:01:44.4]} 20. dxe5 {[%clk 0:02:04.1]} 20... Qxe5 {[%clk 0:01:30.7]} 21. Qf3
{[%clk 0:01:37.2]} 21... Rad8 {[%clk 0:01:20]} 22. Rbd1 {[%clk 0:01:36.6]} 22...
Qb5 {[%clk 0:00:45.4]} 23. Bc1 {[%clk 0:01:34.7]} 23... Ne5 {[%clk 0:00:39.4]}
24. Qf5 {[%clk 0:01:25.9]} 24... g6 {[%clk 0:00:38.2]} 25. Qf6 {[%clk 0:01:21]}
25... Rxd1 {[%clk 0:00:11.6]} 26. Rxd1 {[%clk 0:01:11.5]} 26... Qe2 {[%clk
0:00:12]} 27. Qxe5 {[%clk 0:00:14.5]} 27... Bxf2 {[%clk 0:00:11.8]} 28. Rd2
{[%clk 0:00:10.4]} 28... Bxg3+ {[%clk 0:00:05.8]} 29. Rxe2 {[%clk 0:00:08.6]}
29... Bxe5 {[%clk 0:00:06.1]} 30. Bxc6 {[%clk 0:00:09.1]} 30... bxc6 {[%clk
0:00:04.1]} 31. Rxe5 {[%clk 0:00:08.7]} 31... Ra8 {[%clk 0:00:05]} 32. Rc5
{[%clk 0:00:08.5]} 32... Ra6 {[%clk 0:00:05.3]} 33. Bh6 {[%clk 0:00:08.8]} 33...
f6 {[%clk 0:00:05.5]} 34. Be3 {[%clk 0:00:06.8]} 34... Kf7 {[%clk 0:00:05.7]}
35. Rc4 {[%clk 0:00:07.2]} 35... Ke6 {[%clk 0:00:05.4]} 36. Kf3 {[%clk
0:00:07.7]} 36... g5 {[%clk 0:00:02.9]} 37. h4 {[%clk 0:00:07.7]} 37... h6
{[%clk 0:00:03]} 38. hxg5 {[%clk 0:00:07.4]} 38... hxg5 {[%clk 0:00:03.9]} 39.
Bd4 {[%clk 0:00:07.4]} 39... Kd5 {[%clk 0:00:02.8]} 40. Rc5+ {[%clk 0:00:07.5]}
40... Ke6 {[%clk 0:00:02.7]} 41. Rc4 {[%clk 0:00:07.4]} 41... Kd5 {[%clk
0:00:02.8]} 42. Rc5+ {[%clk 0:00:06.2]} 42... Ke6 {[%clk 0:00:03.3]} 43. Kg4
{[%clk 0:00:06.1]} 43... Rb6 {[%clk 0:00:02.7]} 44. Rf5 {[%clk 0:00:03.5]} 44...
Rxb2 {[%clk 0:00:02.8]} 45. Rxf6+ {[%clk 0:00:04.4]} 45... Kd5 {[%clk
0:00:03.4]} 46. Rf5+ {[%clk 0:00:04.9]} 46... Ke4 {[%clk 0:00:02.4]} 47. Rc5
{[%clk 0:00:04.7]} 47... Rb3 {[%clk 0:00:02.4]} 48. Rxc6 {[%clk 0:00:04.1]}
48... Rxa3 {[%clk 0:00:03]} 49. Kxg5 {[%clk 0:00:05]} 49... Ra2 {[%clk
0:00:02.6]} 50. Ra6 {[%clk 0:00:05.9]} 50... Kd3 {[%clk 0:00:02.2]} 51. Kf6
{[%clk 0:00:06.8]} 51... a3 {[%clk 0:00:02.2]} 52. Ke5 {[%clk 0:00:07.2]} 52...
Kc4 {[%clk 0:00:02.6]} 53. Rc6+ {[%clk 0:00:04.1]} 53... Kb3 {[%clk 0:00:02]}
54. Rb6+ {[%clk 0:00:03.7]} 54... Kc4 {[%clk 0:00:02.3]} 55. Ra6 {[%clk
0:00:04.6]} 55... Ra1 {[%clk 0:00:02.4]} 56. Ra4+ {[%clk 0:00:04.8]} 56... Kb3
{[%clk 0:00:02.5]} 57. Ra8 {[%clk 0:00:05.6]} 57... a2 {[%clk 0:00:02.6]} 58. c4
{[%clk 0:00:03.5]} 58... Re1+ {[%clk 0:00:02.2]} 59. Kd5 {[%clk 0:00:03.9]}
59... Rd1 {[%clk 0:00:02.6]} 60. c5 {[%clk 0:00:03.8]} 60... Rc1 {[%clk
0:00:02.4]} 61. c6 {[%clk 0:00:04.1]} 61... Rc2 {[%clk 0:00:02.8]} 62. Bc5
{[%clk 0:00:04]} 62... Rd2+ {[%clk 0:00:03]} 63. Ke6 {[%clk 0:00:04.3]} 63...
Rc2 {[%clk 0:00:03.1]} 64. Kd6 {[%clk 0:00:04.6]} 64... Rd2+ {[%clk 0:00:03.5]}
65. Ke6 {[%clk 0:00:04.8]} 65... Rc2 {[%clk 0:00:03.7]} 66. Kd6 {[%clk
0:00:05.4]} 66... Rd2+ {[%clk 0:00:04]} 67. Kc7 {[%clk 0:00:06.3]} 67... Rd1
{[%clk 0:00:03.8]} 68. Kb6 {[%clk 0:00:07.2]} 68... a1=Q {[%clk 0:00:02.8]} 69.
Rxa1 {[%clk 0:00:07.6]} 69... Rxa1 {[%clk 0:00:03.7]} 70. c7 {[%clk 0:00:08.3]}
70... Ra8 {[%clk 0:00:03.8]} 71. Kb7 {[%clk 0:00:07.9]} 71... Re8 {[%clk
0:00:02.7]} 72. Be7 {[%clk 0:00:08.3]} 72... Rxe7 {[%clk 0:00:02.8]} 73. Kb8
{[%clk 0:00:08.7]} 73... Re8+ {[%clk 0:00:03.1]} 74. c8=Q {[%clk 0:00:09]} 74...
Rxc8+ {[%clk 0:00:03.6]} 75. Kxc8 {[%clk 0:00:09.9]} 1/2-1/2

[Event "*** Titled Tuesday Blitz"]
[Site "Chess.com"]
[Date "2020.10.20"]
[Round "7"]
[White "Gabrielian_Artur"]
[Black "amintabatabaei"]
[Result "1-0"]
[WhiteElo "2793"]
[BlackElo "2933"]
[TimeControl "180+1"]
[EndTime "11:21:33 PDT"]
[Termination "Gabrielian_Artur won on time"]

1. e4 {[%clk 0:03:00.9]} 1... e5 {[%clk 0:02:59.6]} 2. Nc3 {[%clk 0:03:00.4]}
2... Nf6 {[%clk 0:02:59.2]} 3. g3 {[%clk 0:03:00.6]} 3... d5 {[%clk 0:02:58.6]}
4. exd5 {[%clk 0:03:00.8]} 4... Nxd5 {[%clk 0:02:59.5]} 5. Bg2 {[%clk
0:03:01.1]} 5... Nxc3 {[%clk 0:03:00.2]} 6. bxc3 {[%clk 0:03:01.2]} 6... Bc5
{[%clk 0:03:00.8]} 7. Nf3 {[%clk 0:03:01.1]} 7... Nc6 {[%clk 0:03:00.2]} 8. O-O
{[%clk 0:03:00.4]} 8... O-O {[%clk 0:03:00.5]} 9. Re1 {[%clk 0:03:00.4]} 9...
Re8 {[%clk 0:02:48.1]} 10. d4 {[%clk 0:02:49.2]} 10... Bg4 {[%clk 0:02:47.4]}
11. d5 {[%clk 0:01:44.2]} 11... e4 {[%clk 0:02:14.5]} 12. dxc6 {[%clk
0:01:43.2]} 12... Qxd1 {[%clk 0:02:13.8]} 13. Rxd1 {[%clk 0:01:43.2]} 13... bxc6
{[%clk 0:02:03.5]} 14. Bf4 {[%clk 0:01:39]} 14... exf3 {[%clk 0:01:49.3]} 15.
Bf1 {[%clk 0:01:39.2]} 15... Bb6 {[%clk 0:01:25.8]} 16. a4 {[%clk 0:01:38.5]}
16... a5 {[%clk 0:01:26]} 17. h3 {[%clk 0:01:27.6]} 17... Bf5 {[%clk 0:01:24.2]}
18. Rd2 {[%clk 0:01:27.2]} 18... Rad8 {[%clk 0:01:21.4]} 19. Rad1 {[%clk
0:01:24.8]} 19... Rxd2 {[%clk 0:01:21.3]} 20. Rxd2 {[%clk 0:01:25.7]} 20... h5
{[%clk 0:01:20]} 21. Bc4 {[%clk 0:01:10.1]} 21... Re1+ {[%clk 0:01:16]} 22. Kh2
{[%clk 0:01:10]} 22... Be6 {[%clk 0:00:54]} 23. Bxe6 {[%clk 0:00:51.8]} 23...
Rxe6 {[%clk 0:00:43.9]} 24. g4 {[%clk 0:00:40.8]} 24... h4 {[%clk 0:00:27.1]}
25. Bg5 {[%clk 0:00:28.4]} 25... Re2 {[%clk 0:00:25.6]} 26. Rd8+ {[%clk
0:00:27.6]} 26... Kh7 {[%clk 0:00:26]} 27. Bxh4 {[%clk 0:00:27.9]} 27... Rxc2
{[%clk 0:00:20.5]} 28. Rd3 {[%clk 0:00:22.1]} 28... Bxf2 {[%clk 0:00:10.4]} 29.
Bxf2 {[%clk 0:00:21.3]} 29... Rxf2+ {[%clk 0:00:11.3]} 30. Kg3 {[%clk
0:00:21.7]} 30... Rf1 {[%clk 0:00:06.1]} 31. Rd7 {[%clk 0:00:19.9]} 31... f6
{[%clk 0:00:06]} 32. Rxc7 {[%clk 0:00:19.8]} 32... Ra1 {[%clk 0:00:05]} 33. Rxc6
{[%clk 0:00:19.3]} 33... Rxa4 {[%clk 0:00:05.9]} 34. Kxf3 {[%clk 0:00:19.5]}
34... Kg6 {[%clk 0:00:06.5]} 35. h4 {[%clk 0:00:19.4]} 35... Ra1 {[%clk
0:00:05.2]} 36. h5+ {[%clk 0:00:18.4]} 36... Kg5 {[%clk 0:00:05.3]} 37. Rc5+
{[%clk 0:00:18.8]} 37... Kh6 {[%clk 0:00:05.8]} 38. Ke4 {[%clk 0:00:15]} 38...
a4 {[%clk 0:00:04.5]} 39. Ra5 {[%clk 0:00:14.1]} 39... a3 {[%clk 0:00:04.4]} 40.
Kd3 {[%clk 0:00:13.8]} 40... a2 {[%clk 0:00:03.3]} 41. Kc4 {[%clk 0:00:14]}
41... Rg1 {[%clk 0:00:03.2]} 42. Rxa2 {[%clk 0:00:13.6]} 42... Rxg4+ {[%clk
0:00:04]} 43. Kd5 {[%clk 0:00:13.6]} 43... Kxh5 {[%clk 0:00:04.4]} 44. c4 {[%clk
0:00:13.5]} 44... Rg1 {[%clk 0:00:04.8]} 45. Rd2 {[%clk 0:00:12.3]} 45... g5
{[%clk 0:00:02.7]} 46. c5 {[%clk 0:00:12.8]} 46... g4 {[%clk 0:00:02.7]} 47. c6
{[%clk 0:00:13.2]} 47... Rc1 {[%clk 0:00:03]} 48. Kd6 {[%clk 0:00:12.8]} 48...
f5 {[%clk 0:00:02.6]} 49. Rd5 {[%clk 0:00:12.4]} 49... Kg5 {[%clk 0:00:01.6]}
50. Rc5 {[%clk 0:00:12.1]} 50... Rd1+ {[%clk 0:00:02.3]} 51. Ke7 {[%clk
0:00:12.5]} 51... Re1+ {[%clk 0:00:02.6]} 52. Kf7 {[%clk 0:00:12.9]} 52... Ra1
{[%clk 0:00:02.8]} 53. c7 {[%clk 0:00:13]} 53... Ra8 {[%clk 0:00:03.4]} 54. Ke6
{[%clk 0:00:13.2]} 54... g3 {[%clk 0:00:02.9]} 55. Rxf5+ {[%clk 0:00:13.1]}
55... Kg4 {[%clk 0:00:03.6]} 56. Ra5 {[%clk 0:00:13.1]} 56... Rxa5 {[%clk
0:00:02.2]} 57. c8=Q {[%clk 0:00:12.8]} 57... g2 {[%clk 0:00:02]} 58. Qc4+
{[%clk 0:00:10.6]} 58... Kh3 {[%clk 0:00:01.7]} 59. Qc3+ {[%clk 0:00:10.6]}
59... Kh2 {[%clk 0:00:02.3]} 60. Qh8+ {[%clk 0:00:10.5]} 60... Kg1 {[%clk
0:00:01.9]} 61. Qd4+ {[%clk 0:00:10.5]} 61... Kh1 {[%clk 0:00:02.1]} 62. Qh4+
{[%clk 0:00:10.6]} 62... Kg1 {[%clk 0:00:02.7]} 63. Qe1+ {[%clk 0:00:09.8]}
63... Kh2 {[%clk 0:00:03.1]} 64. Qh4+ {[%clk 0:00:10.2]} 64... Kg1 {[%clk
0:00:03.4]} 65. Kd6 {[%clk 0:00:10.8]} 65... Rf5 {[%clk 0:00:02.5]} 66. Qd4+
{[%clk 0:00:10.2]} 66... Kf1 {[%clk 0:00:02.5]} 67. Qd3+ {[%clk 0:00:10]} 67...
Ke1 {[%clk 0:00:02.9]} 68. Qe3+ {[%clk 0:00:09.7]} 68... Kf1 {[%clk 0:00:03.1]}
69. Qd3+ {[%clk 0:00:10]} 69... Ke1 {[%clk 0:00:03.7]} 70. Qe4+ {[%clk
0:00:10.4]} 1-0

[Event "*** Titled Tuesday Blitz"]
[Site "Chess.com"]
[Date "2020.10.20"]
[Round "7"]
[White "picturesquecheck"]
[Black "Unknown_IM"]
[Result "1-0"]
[WhiteElo "2146"]
[BlackElo "2359"]
[TimeControl "180+1"]
[EndTime "11:21:41 PDT"]
[Termination "picturesquecheck won by resignation"]

1. e4 {[%clk 0:03:00.9]} 1... e5 {[%clk 0:02:59.2]} 2. Nf3 {[%clk 0:02:57.1]}
2... Nc6 {[%clk 0:02:57]} 3. Bc4 {[%clk 0:02:57.6]} 3... Bc5 {[%clk 0:02:54.7]}
4. O-O {[%clk 0:02:57.8]} 4... Nf6 {[%clk 0:02:54]} 5. c3 {[%clk 0:02:58.3]}
5... Nxe4 {[%clk 0:02:52.1]} 6. d4 {[%clk 0:02:58.3]} 6... exd4 {[%clk
0:02:46.6]} 7. cxd4 {[%clk 0:02:59.2]} 7... d5 {[%clk 0:02:46]} 8. dxc5 {[%clk
0:02:53.8]} 8... dxc4 {[%clk 0:02:45.9]} 9. Qc2 {[%clk 0:02:53.1]} 9... Nxc5
{[%clk 0:02:42]} 10. Qxc4 {[%clk 0:02:53]} 10... Ne6 {[%clk 0:02:40.9]} 11. Nc3
{[%clk 0:02:45.8]} 11... Bd7 {[%clk 0:02:37.3]} 12. Be3 {[%clk 0:02:44.7]} 12...
O-O {[%clk 0:02:34.4]} 13. Rfd1 {[%clk 0:02:43]} 13... Qc8 {[%clk 0:02:32.4]}
14. Rac1 {[%clk 0:02:40.7]} 14... Re8 {[%clk 0:02:30.9]} 15. b4 {[%clk
0:02:35.5]} 15... a6 {[%clk 0:02:30.1]} 16. Nd5 {[%clk 0:02:28.1]} 16... Ned8
{[%clk 0:02:26.7]} 17. a4 {[%clk 0:02:20.8]} 17... Ne6 {[%clk 0:02:07.2]} 18. b5
{[%clk 0:01:45.2]} 18... axb5 {[%clk 0:02:06.6]} 19. axb5 {[%clk 0:01:46.1]}
19... Na5 {[%clk 0:02:06.6]} 20. Qd3 {[%clk 0:01:46.2]} 20... Qd8 {[%clk
0:01:41.6]} 21. Nxc7 {[%clk 0:01:39.2]} 21... Nxc7 {[%clk 0:01:41.4]} 22. Bb6
{[%clk 0:01:37.7]} 22... Qf6 {[%clk 0:01:19.3]} 23. Qxd7 {[%clk 0:01:30.5]}
23... Ne6 {[%clk 0:01:16.3]} 24. Bxa5 {[%clk 0:01:27.5]} 24... Nf8 {[%clk
0:01:10.6]} 25. Qd2 {[%clk 0:01:18.2]} 25... Ne6 {[%clk 0:00:56.6]} 26. Bc3
{[%clk 0:01:17.9]} 26... Qg6 {[%clk 0:00:54.7]} 27. Ne5 {[%clk 0:01:13.6]} 27...
Qh5 {[%clk 0:00:53.6]} 28. Qd7 {[%clk 0:01:08.3]} 28... Rad8 {[%clk 0:00:49.3]}
29. Qxf7+ {[%clk 0:00:55.8]} 29... Qxf7 {[%clk 0:00:48.8]} 30. Nxf7 {[%clk
0:00:55.6]} 30... Kxf7 {[%clk 0:00:49.7]} 31. g3 {[%clk 0:00:50.5]} 31... Ng5
{[%clk 0:00:32.3]} 32. Kg2 {[%clk 0:00:48.6]} 32... Ne4 {[%clk 0:00:23.1]} 33.
Bb4 {[%clk 0:00:47.2]} 33... Nf6 {[%clk 0:00:21]} 34. Rc7+ {[%clk 0:00:45.2]}
34... Kg6 {[%clk 0:00:20.8]} 35. Rxd8 {[%clk 0:00:44.3]} 35... Rxd8 {[%clk
0:00:21.7]} 36. Rxb7 {[%clk 0:00:44.9]} 36... Nd5 {[%clk 0:00:19.5]} 37. Ba5
{[%clk 0:00:41.3]} 37... Re8 {[%clk 0:00:18.4]} 38. Kf3 {[%clk 0:00:38.9]} 38...
Rf8+ {[%clk 0:00:17.8]} 39. Kg2 {[%clk 0:00:38.2]} 39... Re8 {[%clk 0:00:17.4]}
40. Rd7 {[%clk 0:00:37.2]} 40... Nf6 {[%clk 0:00:16.7]} 41. Rd2 {[%clk
0:00:35.7]} 41... Re5 {[%clk 0:00:16.2]} 42. Rb2 {[%clk 0:00:34.1]} 42... Nd7
{[%clk 0:00:15.7]} 43. Bc3 {[%clk 0:00:32.7]} 43... Rc5 {[%clk 0:00:14]} 44. Bd4
{[%clk 0:00:32]} 44... Rd5 {[%clk 0:00:14.1]} 45. Be3 {[%clk 0:00:30.1]} 45...
h6 {[%clk 0:00:13.3]} 46. b6 {[%clk 0:00:30.4]} 46... Kh7 {[%clk 0:00:12.5]} 47.
b7 {[%clk 0:00:30.6]} 47... g6 {[%clk 0:00:10.3]} 48. b8=Q {[%clk 0:00:29.2]}
48... Nxb8 {[%clk 0:00:09.9]} 49. Rxb8 {[%clk 0:00:30.1]} 49... g5 {[%clk
0:00:10.8]} 50. Rb7+ {[%clk 0:00:30]} 50... Kg6 {[%clk 0:00:10.7]} 51. g4 {[%clk
0:00:30.6]} 51... h5 {[%clk 0:00:10.4]} 52. Rb6+ {[%clk 0:00:31.3]} 52... Kh7
{[%clk 0:00:10.4]} 53. gxh5 {[%clk 0:00:32.2]} 53... g4 {[%clk 0:00:10.8]} 54.
h6 {[%clk 0:00:31.4]} 54... Rd7 {[%clk 0:00:11.2]} 55. Kg3 {[%clk 0:00:28.2]}
55... Re7 {[%clk 0:00:11.5]} 56. Kxg4 {[%clk 0:00:27]} 56... Rf7 {[%clk
0:00:11.5]} 57. h4 {[%clk 0:00:26]} 57... Rd7 {[%clk 0:00:11.4]} 58. Re6 {[%clk
0:00:23.3]} 58... Rc7 {[%clk 0:00:10.2]} 59. Bg5 {[%clk 0:00:23.4]} 59... Rc4+
{[%clk 0:00:09.9]} 60. f4 {[%clk 0:00:23.3]} 60... Rc8 {[%clk 0:00:09.1]} 61.
Re7+ {[%clk 0:00:22.8]} 61... Kh8 {[%clk 0:00:09.1]} 62. Kh5 {[%clk 0:00:23.4]}
62... Rf8 {[%clk 0:00:08.9]} 63. Kg6 {[%clk 0:00:22.1]} 63... Rg8+ {[%clk
0:00:08.8]} 64. Kh5 {[%clk 0:00:19.1]} 64... Rf8 {[%clk 0:00:08.8]} 65. Rd7
{[%clk 0:00:19]} 65... Kg8 {[%clk 0:00:07.7]} 66. f5 {[%clk 0:00:18.1]} 66...
Kh8 {[%clk 0:00:07.8]} 67. f6 {[%clk 0:00:17.5]} 67... Kg8 {[%clk 0:00:07.6]}
68. h7+ {[%clk 0:00:16.2]} 68... Kh8 {[%clk 0:00:07.5]} 69. Bh6 {[%clk
0:00:16.1]} 69... Rf7 {[%clk 0:00:03.2]} 70. Rd8+ {[%clk 0:00:11.4]} 70... Kxh7
{[%clk 0:00:03]} 71. Bg7 {[%clk 0:00:11.5]} 71... Rf8 {[%clk 0:00:01.8]} 72.
Bxf8 {[%clk 0:00:09.8]} 72... Kg8 {[%clk 0:00:02.4]} 73. Bg7+ {[%clk 0:00:09.7]}
73... Kf7 {[%clk 0:00:03.3]} 74. Rf8+ {[%clk 0:00:09.6]} 74... Ke6 {[%clk
0:00:03.7]} 75. Kg6 {[%clk 0:00:10]} 1-0

[Event "*** Titled Tuesday Blitz"]
[Site "Chess.com"]
[Date "2020.10.20"]
[Round "7"]
[White "MITerryble"]
[Black "esapunov"]
[Result "1-0"]
[WhiteElo "2895"]
[BlackElo "2763"]
[TimeControl "180+1"]
[EndTime "11:21:52 PDT"]
[Termination "MITerryble won by resignation"]

1. e4 {[%clk 0:03:00.9]} 1... c5 {[%clk 0:02:59.5]} 2. Nf3 {[%clk 0:03:01.2]}
2... d6 {[%clk 0:02:59.6]} 3. Bb5+ {[%clk 0:03:01.5]} 3... Bd7 {[%clk 0:02:59]}
4. Bxd7+ {[%clk 0:03:01.3]} 4... Qxd7 {[%clk 0:02:58.5]} 5. O-O {[%clk
0:03:01.3]} 5... Nf6 {[%clk 0:02:58.3]} 6. e5 {[%clk 0:02:56.2]} 6... dxe5
{[%clk 0:02:58]} 7. Nxe5 {[%clk 0:02:57.1]} 7... Qc7 {[%clk 0:02:58.4]} 8. d4
{[%clk 0:02:56.9]} 8... e6 {[%clk 0:02:56.2]} 9. Bf4 {[%clk 0:02:56.3]} 9... Qc8
{[%clk 0:02:40.2]} 10. Nc3 {[%clk 0:02:38.4]} 10... cxd4 {[%clk 0:02:37.6]} 11.
Qxd4 {[%clk 0:02:37.4]} 11... Bc5 {[%clk 0:02:35.3]} 12. Qa4+ {[%clk 0:02:36.1]}
12... Nbd7 {[%clk 0:02:31.8]} 13. Rad1 {[%clk 0:02:34]} 13... Ke7 {[%clk
0:02:14.4]} 14. Nxd7 {[%clk 0:02:19.7]} 14... Nxd7 {[%clk 0:02:13.5]} 15. Ne4
{[%clk 0:02:16.9]} 15... e5 {[%clk 0:01:41.5]} 16. Rxd7+ {[%clk 0:01:23.6]}
16... Qxd7 {[%clk 0:01:39.8]} 17. Qxd7+ {[%clk 0:01:24.5]} 17... Kxd7 {[%clk
0:01:40.2]} 18. Nxc5+ {[%clk 0:01:25.4]} 18... Kc6 {[%clk 0:01:39.4]} 19. Be3
{[%clk 0:01:25.6]} 19... Rhd8 {[%clk 0:01:30.6]} 20. Nd3 {[%clk 0:01:23.8]}
20... f6 {[%clk 0:01:30.3]} 21. f3 {[%clk 0:01:24]} 21... a5 {[%clk 0:01:27.9]}
22. Kf2 {[%clk 0:01:23]} 22... b5 {[%clk 0:01:27.5]} 23. Ke2 {[%clk 0:01:23.3]}
23... Rd5 {[%clk 0:01:25]} 24. a3 {[%clk 0:01:22.6]} 24... Rad8 {[%clk
0:01:23.9]} 25. g4 {[%clk 0:01:22.4]} 25... Kd6 {[%clk 0:01:11.4]} 26. Bd2
{[%clk 0:01:16.3]} 26... Ra8 {[%clk 0:01:08.5]} 27. h4 {[%clk 0:01:15.4]} 27...
Ke6 {[%clk 0:01:07.9]} 28. f4 {[%clk 0:01:12.2]} 28... Rc8 {[%clk 0:00:58.8]}
29. Rc1 {[%clk 0:01:07.3]} 29... a4 {[%clk 0:00:57.6]} 30. Be3 {[%clk
0:00:55.7]} 30... Rc4 {[%clk 0:00:47.7]} 31. c3 {[%clk 0:00:54.9]} 31... h6
{[%clk 0:00:44.7]} 32. Rf1 {[%clk 0:00:54.4]} 32... Rc8 {[%clk 0:00:36.7]} 33.
h5 {[%clk 0:00:54.1]} 33... Rc4 {[%clk 0:00:31]} 34. Rg1 {[%clk 0:00:47]} 34...
Kf7 {[%clk 0:00:28.6]} 35. fxe5 {[%clk 0:00:43.2]} 35... fxe5 {[%clk 0:00:28.6]}
36. g5 {[%clk 0:00:43.3]} 36... Rh4 {[%clk 0:00:23.4]} 37. gxh6 {[%clk
0:00:36.2]} 37... gxh6 {[%clk 0:00:23.2]} 38. Bxh6 {[%clk 0:00:36.8]} 38... Rxh5
{[%clk 0:00:22.7]} 39. Be3 {[%clk 0:00:36.8]} 39... Rh2+ {[%clk 0:00:21.4]} 40.
Nf2 {[%clk 0:00:37]} 40... Rd7 {[%clk 0:00:18.2]} 41. Rg5 {[%clk 0:00:35.8]}
41... Ke6 {[%clk 0:00:17.2]} 42. Rg6+ {[%clk 0:00:36.1]} 42... Kd5 {[%clk
0:00:16.8]} 43. Rg4 {[%clk 0:00:33]} 43... Rf7 {[%clk 0:00:15.1]} 44. Rb4 {[%clk
0:00:32.7]} 44... Kc6 {[%clk 0:00:14.9]} 45. c4 {[%clk 0:00:33]} 45... Rb7
{[%clk 0:00:13.1]} 46. c5 {[%clk 0:00:23.2]} 46... Kd5 {[%clk 0:00:11.4]} 47.
Rg4 {[%clk 0:00:21.4]} 47... Rf7 {[%clk 0:00:10.4]} 48. Rg5 {[%clk 0:00:17.5]}
48... Re7 {[%clk 0:00:09.6]} 49. Rg6 {[%clk 0:00:17.3]} 49... Kc4 {[%clk
0:00:09.5]} 50. c6 {[%clk 0:00:16.1]} 50... Kb3 {[%clk 0:00:08.8]} 51. Bb6
{[%clk 0:00:07.5]} 51... Rhh7 {[%clk 0:00:07.2]} 52. Nd3 {[%clk 0:00:06.1]}
52... e4 {[%clk 0:00:07]} 53. Nf4 {[%clk 0:00:05.2]} 53... Ref7 {[%clk
0:00:05.9]} 54. Ke3 {[%clk 0:00:04.9]} 54... Kxb2 {[%clk 0:00:06.1]} 55. Bc5
{[%clk 0:00:04.8]} 55... Kb3 {[%clk 0:00:06.2]} 56. Kxe4 {[%clk 0:00:04.7]}
56... Rh4 {[%clk 0:00:05.9]} 57. Bd6 {[%clk 0:00:04.1]} 57... b4 {[%clk
0:00:04.3]} 58. c7 {[%clk 0:00:03.4]} 58... Rxc7 {[%clk 0:00:03.6]} 59. Bxc7
{[%clk 0:00:04.3]} 59... bxa3 {[%clk 0:00:04.3]} 60. Rb6+ {[%clk 0:00:04.5]}
60... Kc2 {[%clk 0:00:04.2]} 61. Rc6+ {[%clk 0:00:04.6]} 61... Kb3 {[%clk
0:00:04.2]} 62. Be5 {[%clk 0:00:04.8]} 62... a2 {[%clk 0:00:04.1]} 63. Rb6+
{[%clk 0:00:03.2]} 63... Kc4 {[%clk 0:00:03.9]} 64. Rc6+ {[%clk 0:00:03.2]}
64... Kb3 {[%clk 0:00:04.1]} 65. Rc3+ {[%clk 0:00:03.3]} 65... Kb4 {[%clk
0:00:03.9]} 66. Rc1 {[%clk 0:00:03.6]} 66... Kb3 {[%clk 0:00:03.4]} 67. Ke3
{[%clk 0:00:03.9]} 67... Rh2 {[%clk 0:00:02.9]} 68. Rc3+ {[%clk 0:00:03.6]}
68... Kb4 {[%clk 0:00:02.6]} 69. Nd3+ {[%clk 0:00:03.9]} 69... Kb5 {[%clk
0:00:02.7]} 70. Rc5+ {[%clk 0:00:03.9]} 70... Kb6 {[%clk 0:00:03.1]} 71. Rc1
{[%clk 0:00:03]} 71... Kb5 {[%clk 0:00:03.4]} 72. Bxh2 {[%clk 0:00:02.2]} 72...
a3 {[%clk 0:00:02.5]} 73. Ra1 {[%clk 0:00:03.1]} 73... Kc4 {[%clk 0:00:02.4]}
74. Be5 {[%clk 0:00:04]} 74... Kb3 {[%clk 0:00:03.1]} 75. Kd2 {[%clk 0:00:04.5]}
75... Kc4 {[%clk 0:00:03.3]} 76. Rxa2 {[%clk 0:00:04.8]} 76... Kd5 {[%clk
0:00:04.1]} 77. Rxa3 {[%clk 0:00:04.2]} 77... Kc4 {[%clk 0:00:04.8]} 78. Bc3
{[%clk 0:00:05.1]} 1-0